bitfinex-derivatives/quotes_BTCF0:USTF0_20260106
["timestamp","ask_amount","ask_price","bid_price","bid_amount"]
[1767693282058,0.09088,93620.0,93600.0,0.09881836]
[1767693282258,0.010686,93607.0,93594.0,0.09020465]
[1767693282659,0.18969836,93620.0,93594.0,0.09020465]
[1767693282660,0.010686,93610.0,93594.0,0.09020465]
[1767693282855,0.00920772,93612.0,93594.0,0.09020465]
[1767693283059,0.01989472,93603.0,93587.0,0.010688]
[1767693283356,0.010687,93601.0,93590.0,0.09881836]
[1767693283557,0.10008772,93607.0,93590.0,0.09881836]
[1767693283855,0.00920772,93600.0,93590.0,0.09881836]
[1767693284263,0.010687,93602.0,93590.0,0.09881836]
[1767693286364,0.010687,93602.0,93586.0,0.10089365]
[1767693286566,0.10008772,93604.0,93586.0,0.09020465]
[1767693287251,0.010687,93597.0,93586.0,0.09020465]
[1767693289466,0.010687,93603.0,93586.0,0.09020465]
[1767693289667,0.010687,93597.0,93586.0,0.09020465]
[1767693289969,0.00920772,93618.0,93597.0,0.09940803]
[1767693290170,0.09088,93613.0,93597.0,0.09940803]
[1767693290371,0.10008772,93613.0,93597.0,0.09020465]
[1767693290669,0.010687,93602.0,93592.0,0.09020465]
[1767693291470,0.010687,93600.0,93592.0,0.09020465]
[1767693293569,0.00920772,93610.0,93592.0,0.09020465]
[1767693293765,0.09088,93610.0,93593.0,0.00920338]
[1767693294068,0.00920772,93608.0,93585.0,0.00920338]
[1767693294274,0.010688,93595.0,93585.0,0.09020465]
[1767693294470,0.010688,93595.0,93586.0,0.00920338]
[1767693294770,0.010688,93595.0,93587.0,0.09020465]
[1767693296570,0.010688,93593.0,93587.0,0.09020465]
[1767693296771,0.010688,93593.0,93578.0,0.07663151]
[1767693296772,0.010688,93595.0,93577.0,0.00937864]
[1767693297078,0.010689,93583.0,93574.0,0.00937864]
[1767693297377,0.010689,93583.0,93570.0,0.00937864]
[1767693297575,0.010689,93583.0,93571.0,0.00937864]
[1767693297776,0.010689,93587.0,93574.0,0.00937864]
[1767693298177,0.010689,93585.0,93574.0,0.00937864]
[1767693298474,0.010689,93580.0,93574.0,0.00937864]
[1767693298778,0.021376,93593.0,93574.0,0.00937864]
[1767693298779,0.010689,93582.0,93574.0,0.00937864]
[1767693299077,0.01069,93577.0,93570.0,0.00937864]
[1767693299262,0.00973028,93589.0,93570.0,0.00937864]
[1767693299876,0.010689,93579.0,93568.0,0.09088]
[1767693300176,0.010689,93579.0,93568.0,0.18714364]
[1767693300574,0.01069,93576.0,93568.0,0.09088]
[1767693301076,0.00973028,93584.0,93563.0,0.09626364]
[1767693301265,0.010691,93568.0,93557.0,0.09649852]
[1767693301467,0.010691,93569.0,93557.0,0.09649852]
[1767693301669,0.010691,93565.0,93553.0,0.07663151]
[1767693301878,0.101596,93566.0,93552.0,0.00012786]
[1767693302079,0.010692,93560.0,93543.0,0.010693]
[1767693302278,0.010691,93563.0,93549.0,0.00905903]
[1767693302767,0.010691,93563.0,93549.0,0.01975203]
[1767693302963,0.01069,93570.0,93561.0,0.00905903]
[1767693303672,0.01069,93570.0,93560.0,0.09649852]
[1767693305583,0.01069,93570.0,93558.0,0.00905903]
[1767693306075,0.010691,93569.0,93558.0,0.00905903]
[1767693306275,0.010691,93569.0,93559.0,0.00905903]
[1767693306476,0.010691,93569.0,93560.0,0.00905903]
[1767693306876,0.10157,93572.0,93560.0,0.00905903]
[1767693307076,0.01069,93575.0,93564.0,0.00905903]
[1767693307283,0.01056214,93575.0,93567.0,0.00905903]
[1767693307472,0.01056214,93575.0,93566.0,0.09149852]
[1767693307878,0.01056214,93575.0,93564.0,0.00905903]
[1767693308176,0.01069,93573.0,93564.0,0.00905903]
[1767693309180,0.01069,93576.0,93564.0,0.00905903]
[1767693310580,0.010689,93583.0,93570.0,0.00905903]
[1767693310787,0.010689,93583.0,93571.0,0.10555755]
[1767693311880,0.010689,93586.0,93573.0,0.00905903]
[1767693312085,0.010689,93586.0,93575.0,0.00905903]
[1767693312885,0.010689,93586.0,93576.0,0.10555755]
[1767693313189,0.010689,93586.0,93577.0,0.00905903]
[1767693314589,0.010688,93589.0,93578.0,0.00905903]
[1767693315291,0.010688,93589.0,93577.0,0.09155755]
[1767693315588,0.010688,93592.0,93577.0,0.10224755]
[1767693316379,0.010688,93590.0,93577.0,0.09155755]
[1767693317186,0.101568,93593.0,93578.0,0.00905903]
[1767693317387,0.101568,93593.0,93577.0,0.09155755]
[1767693317388,0.101568,93593.0,93580.0,0.00905903]
[1767693318090,0.010688,93591.0,93580.0,0.00905903]
[1767693318589,0.010688,93589.0,93579.0,0.09649852]
[1767693318791,0.09088,93593.0,93579.0,0.09649852]
[1767693318992,0.010688,93589.0,93576.0,0.01974903]
[1767693320695,0.010688,93588.0,93577.0,0.00905903]
[1767693322892,0.010688,93588.0,93577.0,0.00405903]
[1767693323394,0.010688,93590.0,93577.0,0.01474903]
[1767693328093,0.010688,93590.0,93578.0,0.010689]
[1767693328290,0.010688,93589.0,93576.0,0.10718852]
[1767693330595,0.010689,93585.0,93576.0,0.09649852]
[1767693330898,0.010689,93585.0,93576.0,0.08349852]
[1767693331098,0.010688,93587.0,93576.0,0.08349852]
[1767693335202,0.010689,93586.0,93576.0,0.08349852]
[1767693337203,0.010688,93588.0,93576.0,0.08349852]
[1767693337904,0.010688,93590.0,93576.0,0.09418852]
[1767693338404,0.010688,93590.0,93576.0,0.09371874]
[1767693339200,0.010688,93590.0,93578.0,0.010689]
[1767693340600,0.010688,93588.0,93576.0,0.08302874]
[1767693342412,0.09088,93593.0,93576.0,0.08302874]
[1767693344194,0.010688,93589.0,93576.0,0.08302874]
[1767693346311,0.010688,93589.0,93576.0,0.06902874]
[1767693347013,0.09088,93593.0,93576.0,0.06902874]
[1767693349316,0.010688,93588.0,93576.0,0.06902874]
[1767693349622,0.00995206,93605.0,93586.0,0.09019607]
[1767693349913,0.0986436,93590.0,93573.0,0.08658928]
[1767693350118,0.010687,93596.0,93569.0,0.09088]
[1767693350119,0.010689,93583.0,93569.0,0.09088]
[1767693350314,0.00995206,93588.0,93569.0,0.09088]
[1767693350315,0.010689,93581.0,93569.0,0.09088]
[1767693351216,0.010689,93581.0,93569.0,0.17624158]
[1767693351615,0.09088,93595.0,93561.0,0.07663151]
[1767693351616,0.10859566,93580.0,93561.0,0.07663151]
[1767693351806,0.10859566,93580.0,93561.0,0.07937036]
[1767693352008,0.0986436,93580.0,93562.0,0.00273885]
[1767693352208,0.0986436,93580.0,93563.0,0.00273885]
[1767693352708,0.01069,93575.0,93562.0,0.08477792]
[1767693352907,0.01069,93575.0,93560.0,0.07663151]
[1767693353104,0.01069,93575.0,93560.0,0.07924842]
[1767693353319,0.01069,93575.0,93561.0,0.00261691]
[1767693353923,0.01069,93575.0,93559.0,0.16313649]
[1767693354111,0.10859566,93575.0,93559.0,0.07663151]
[1767693354313,0.10859566,93575.0,93552.0,0.07663151]
[1767693354517,0.10859566,93575.0,93560.0,0.09881091]
[1767693355220,0.10859566,93567.0,93555.0,0.07663151]
[1767693355422,0.10859566,93567.0,93557.0,0.09881091]
[1767693355717,0.0986436,93567.0,93557.0,0.09881091]
[1767693355920,0.010691,93563.0,93557.0,0.09881091]
[1767693356124,0.10157,93575.0,93551.0,0.07663151]
[1767693356125,0.1077716,93564.0,93551.0,0.07663151]
[1767693356618,0.010691,93562.0,93550.0,0.09881091]
[1767693360921,0.09706369,93564.0,93550.0,0.09881091]
[1767693361520,0.010691,93564.0,93551.0,0.010693]
[1767693362320,0.010691,93567.0,93551.0,0.010693]
[1767693362523,0.09716722,93576.0,93558.0,0.00020507]
[1767693362723,0.09088,93576.0,93561.0,0.00020507]
[1767693363127,0.09088,93576.0,93563.0,0.010691]
[1767693363328,0.09716722,93582.0,93567.0,0.010691]
[1767693363529,0.010689,93581.0,93568.0,0.00020507]
[1767693363828,0.010689,93579.0,93570.0,0.09881091]
[1767693364928,0.01069,93577.0,93564.0,9.665e-05]
[1767693365928,0.01069,93575.0,93562.0,0.09090114]
[1767693366520,0.19889356,93582.0,93562.0,0.09090114]
[1767693366926,0.19889356,93582.0,93563.0,0.010691]
[1767693367122,0.01069,93575.0,93562.0,0.09090114]
[1767693368130,0.19889356,93582.0,93560.0,0.09881091]
[1767693368131,0.10801356,93578.0,93560.0,0.09881091]
[1767693369032,0.01069,93573.0,93560.0,0.09881091]
[1767693369334,0.01069,93573.0,93560.0,0.08281091]
[1767693370736,0.09088,93582.0,93564.0,0.09090114]
[1767693370946,0.10801356,93590.0,93570.0,0.09881091]
[1767693371130,0.10801356,93590.0,93580.0,0.09881091]
[1767693371328,0.09092,93589.0,93580.0,0.09881091]
[1767693372238,0.010688,93588.0,93580.0,0.09881091]
[1767693373444,0.010689,93586.0,93580.0,0.09881091]
[1767693373639,0.010689,93586.0,93576.0,0.09881091]
[1767693374738,0.101608,93589.0,93576.0,0.09881091]
[1767693375045,0.09092,93589.0,93579.0,0.09881091]
[1767693375342,0.09092,93589.0,93576.0,0.01069]
[1767693375545,0.09092,93589.0,93579.0,0.09881091]
[1767693376646,0.09092,93589.0,93576.0,0.01069]
[1767693376854,0.09092,93589.0,93579.0,0.09881091]
[1767693377146,0.09092,93589.0,93579.0,0.09381091]
[1767693378848,0.010688,93588.0,93579.0,0.09381091]
[1767693379147,0.10801356,93588.0,93572.0,0.01069]
[1767693379348,0.010689,93584.0,93572.0,0.01069]
[1767693380341,0.10801356,93588.0,93570.0,0.09881091]
[1767693380546,0.010689,93584.0,93573.0,0.01069]
[1767693380746,0.10801356,93578.0,93559.0,0.07663151]
[1767693381047,0.11870356,93576.0,93563.0,0.010691]
[1767693381239,0.01069,93574.0,93560.0,0.10950191]
[1767693381440,0.10801356,93572.0,93560.0,0.10950191]
[1767693381650,0.10801356,93572.0,93561.0,0.010691]
[1767693381846,0.09716722,93572.0,93561.0,0.010691]
[1767693382046,0.10785722,93572.0,93560.0,0.09881091]
[1767693382440,0.10785722,93572.0,93560.0,0.10950291]
[1767693382744,0.09716722,93572.0,93560.0,0.10950291]
[1767693382946,0.01069,93571.0,93560.0,0.09881091]
[1767693383340,0.02153734,93569.0,93554.0,0.010692]
[1767693383546,0.10801356,93567.0,93556.0,0.010692]
[1767693383847,0.09716722,93567.0,93556.0,0.010692]
[1767693384247,0.09716722,93567.0,93557.0,0.09881091]
[1767693384448,0.01084634,93571.0,93557.0,0.09881091]
[1767693384643,0.01084634,93571.0,93560.0,0.09881091]
[1767693384844,0.01069,93570.0,93556.0,0.010692]
[1767693385046,0.01069,93570.0,93560.0,0.09881091]
[1767693385551,0.01084634,93571.0,93560.0,0.09881091]
[1767693386147,0.01084634,93571.0,93556.0,0.010692]
[1767693386342,0.01084634,93571.0,93560.0,0.09881091]
[1767693387155,0.02153634,93571.0,93560.0,0.09881091]
[1767693388557,0.02153634,93571.0,93556.0,0.010692]
[1767693388854,0.010691,93569.0,93556.0,0.010692]
[1767693389158,0.10801356,93570.0,93553.0,0.010692]
[1767693389358,0.010691,93568.0,93555.0,0.010692]
[1767693390059,0.10801356,93570.0,93551.0,0.07663151]
[1767693390762,0.11870456,93570.0,93556.0,0.010692]
[1767693392460,0.11870456,93570.0,93551.0,0.06932351]
[1767693393262,0.11870456,93570.0,93556.0,0.010692]
[1767693395262,0.11870456,93570.0,93558.0,0.010692]
[1767693395561,0.10801356,93570.0,93550.0,0.09881091]
[1767693395763,0.10801356,93570.0,93550.0,0.10950391]
[1767693396763,0.10801356,93570.0,93560.0,0.010692]
[1767693398264,0.11870356,93570.0,93550.0,0.10950391]
[1767693398664,0.10801356,93570.0,93559.0,0.010692]
[1767693400269,0.10801356,93570.0,93550.0,0.10419591]
[1767693400566,0.10801356,93570.0,93561.0,0.010691]
[1767693402569,0.10801356,93570.0,93551.0,0.010692]
[1767693402570,0.10801356,93570.0,93559.0,0.010692]
[1767693402771,0.01023372,93569.0,93559.0,0.010692]
[1767693403269,0.02092472,93569.0,93550.0,0.09350291]
[1767693403770,0.02092472,93569.0,93558.0,0.010692]
[1767693403771,0.01023372,93569.0,93558.0,0.010692]
[1767693403966,0.09716722,93570.0,93558.0,0.010692]
[1767693404468,0.09716722,93570.0,93559.0,0.010692]
[1767693404865,0.09716722,93570.0,93560.0,0.010692]
[1767693405064,0.09716722,93570.0,93561.0,0.010691]
[1767693405770,0.09716722,93570.0,93551.0,0.010693]
[1767693406371,0.10740094,93570.0,93551.0,0.010693]
[1767693407173,0.10740094,93570.0,93560.0,0.010692]
[1767693407363,0.10740094,93570.0,93561.0,0.010691]
[1767693408573,0.10188611,93569.0,93552.0,0.010692]
[1767693408771,0.10188611,93569.0,93550.0,0.09350291]
[1767693408772,0.01023372,93568.0,93550.0,0.08919491]
[1767693409074,0.10188611,93568.0,93550.0,0.08919491]
[1767693410574,0.10188611,93567.0,93550.0,0.09881091]
[1767693410873,0.10188611,93567.0,93557.0,0.010692]
[1767693411872,0.09165239,93567.0,93558.0,0.010692]
[1767693415485,0.09165239,93567.0,93556.0,0.010692]
[1767693416185,0.09165239,93567.0,93557.0,0.010692]
[1767693416386,0.09165239,93567.0,93553.0,0.07034113]
[1767693416582,0.09165239,93567.0,93549.0,0.09092]
[1767693416788,0.09165239,93567.0,93557.0,0.010692]
[1767693417890,0.09165239,93567.0,93558.0,0.010692]
[1767693418998,0.09165239,93567.0,93559.0,0.010692]
[1767693419298,0.09165239,93567.0,93560.0,0.010691]
[1767693420292,0.10243066,93567.0,93549.0,0.09092]
[1767693420594,0.10243066,93567.0,93558.0,0.010692]
[1767693420798,0.10243066,93567.0,93560.0,0.010692]
[1767693421396,0.10243066,93567.0,93550.0,0.010693]
[1767693421597,0.10243066,93567.0,93557.0,0.010692]
[1767693422096,0.010691,93565.0,93549.0,0.09092]
[1767693422397,0.010691,93565.0,93543.0,0.18903213]
[1767693422398,0.10582789,93551.0,93543.0,0.0956662]
[1767693422598,0.00361619,93551.0,93543.0,0.010693]
[1767693422793,0.010692,93558.0,93543.0,0.010693]
[1767693422994,0.010692,93558.0,93545.0,0.010693]
[1767693423297,0.010692,93561.0,93538.0,0.09092]
[1767693423495,0.010692,93561.0,93546.0,0.010693]
[1767693423702,0.010692,93559.0,93546.0,0.010693]
[1767693424097,0.010692,93559.0,93538.0,0.08775116]
[1767693424299,0.010692,93559.0,93544.0,0.010693]
[1767693424603,0.10582789,93557.0,93544.0,0.010693]
[1767693424797,0.0100221,93556.0,93546.0,0.010693]
[1767693425291,0.0100221,93556.0,93548.0,0.010693]
[1767693427505,0.0100221,93556.0,93541.0,0.07678522]
[1767693428202,0.0100221,93556.0,93540.0,0.07678522]
[1767693428507,0.09580579,93557.0,93546.0,0.010693]
[1767693428896,0.09580579,93557.0,93542.0,0.0842401]
[1767693429204,0.10582789,93557.0,93547.0,0.010693]
[1767693429502,0.11651989,93557.0,93545.0,0.010693]
[1767693429703,0.10582789,93557.0,93545.0,0.010693]
[1767693431804,0.10582789,93557.0,93541.0,0.06847822]
[1767693432204,0.10582789,93557.0,93545.0,0.010693]
[1767693432600,0.10582789,93554.0,93543.0,0.010693]
[1767693434201,0.10582789,93554.0,93545.0,0.010693]
[1767693435606,0.10582789,93554.0,93541.0,0.08477031]
[1767693435904,0.10582789,93554.0,93538.0,0.08775116]
[1767693437207,0.10582789,93554.0,93544.0,0.010693]
[1767693437605,0.10582789,93554.0,93545.0,0.010693]
[1767693437805,0.11651989,93554.0,93543.0,0.010693]
[1767693438006,0.0100221,93553.0,93543.0,0.010693]
[1767693438204,0.0207141,93553.0,93541.0,0.010694]
[1767693438408,0.0100221,93549.0,93541.0,0.010694]
[1767693438596,0.0100221,93549.0,93538.0,0.09844516]
[1767693438804,0.0100221,93549.0,93540.0,0.010694]
[1767693439204,0.0100221,93549.0,93538.0,0.09844516]
[1767693439508,0.0100221,93549.0,93539.0,0.010694]
[1767693439700,0.0100221,93549.0,93538.0,0.08775116]
[1767693439907,0.0100221,93549.0,93541.0,0.010694]
[1767693440307,0.09580579,93550.0,93538.0,0.08775116]
[1767693440505,0.10582789,93550.0,93538.0,0.08775116]
[1767693441309,0.10582789,93550.0,93541.0,0.010694]
[1767693441712,0.10582789,93550.0,93539.0,0.010694]
[1767693442212,0.0100221,93548.0,93539.0,0.010694]
[1767693442416,0.0100221,93548.0,93538.0,0.08775116]
[1767693442620,0.09580579,93549.0,93543.0,0.010693]
[1767693443302,0.09580579,93549.0,93541.0,0.010694]
[1767693443505,0.09580579,93549.0,93533.0,0.09092]
[1767693443705,0.09580579,93549.0,93540.0,0.010694]
[1767693445322,0.09580579,93549.0,93542.0,0.010694]
[1767693445818,0.10582789,93554.0,93534.0,0.01021765]
[1767693446021,0.0207141,93553.0,93540.0,0.010694]
[1767693446319,0.0207141,93553.0,93541.0,0.010694]
[1767693446320,0.0100221,93552.0,93541.0,0.010694]
[1767693458833,0.0100221,93552.0,93540.0,0.010694]
[1767693459937,0.0207151,93552.0,93538.0,0.010694]
[1767693460131,0.10393639,93551.0,93534.0,0.0767809]
[1767693460321,0.10393639,93551.0,93533.0,0.1510889]
[1767693460619,0.10393639,93551.0,93539.0,0.010694]
[1767693462534,0.10393639,93551.0,93541.0,0.010694]
[1767693462734,0.10393639,93551.0,93534.0,0.0724749]
[1767693462933,0.10393639,93551.0,93540.0,0.010694]
[1767693463635,0.0924634,93544.0,93525.0,0.0956662]
[1767693463928,0.0924634,93524.0,93507.0,0.17842593]
[1767693464129,0.10393639,93523.0,93515.0,0.010697]
[1767693464331,0.10393639,93523.0,93517.0,0.010696]
[1767693464529,0.0924634,93523.0,93507.0,0.08750593]
[1767693464831,0.01147299,93527.0,93507.0,0.08750593]
[1767693464832,0.0924634,93542.0,93525.0,0.010696]
[1767693465041,0.09092,93541.0,93525.0,0.010696]
[1767693465229,0.0924634,93540.0,93525.0,0.010696]
[1767693465830,0.0924634,93540.0,93527.0,0.010695]
[1767693466030,0.09092,93539.0,93530.0,0.010695]
[1767693468236,0.09092,93539.0,93519.0,0.10616779]
[1767693468538,0.10393639,93539.0,93519.0,0.10616779]
[1767693468731,0.19485639,93539.0,93519.0,0.10616779]
[1767693469139,0.19485639,93539.0,93529.0,0.010695]
[1767693470430,0.19485639,93539.0,93519.0,0.10286279]
[1767693470838,0.19485639,93539.0,93528.0,0.010695]
[1767693471038,0.0924634,93538.0,93528.0,0.010695]
[1767693472036,0.10393639,93538.0,93526.0,0.010695]
[1767693472245,0.10393639,93536.0,93526.0,0.010695]
[1767693472434,0.10393639,93536.0,93518.0,0.010696]
[1767693473149,0.10393639,93536.0,93529.0,0.010695]
[1767693473447,0.0924634,93536.0,93519.0,0.01113839]
[1767693473647,0.0924634,93536.0,93531.0,0.010695]
[1767693473943,0.1833834,93539.0,93531.0,0.010695]
[1767693474246,0.10393639,93538.0,93531.0,0.010695]
[1767693474745,0.10393639,93537.0,93519.0,0.01113839]
[1767693475041,0.10393639,93537.0,93529.0,0.010695]
[1767693475235,0.10393639,93537.0,93519.0,0.01113839]
[1767693475632,0.09092,93539.0,93513.0,0.1966464]
[1767693475633,0.09429506,93535.0,93516.0,0.01146494]
[1767693475834,0.10679171,93533.0,93522.0,0.010696]
[1767693476031,0.10679171,93533.0,93513.0,0.20811134]
[1767693476032,0.10679171,93533.0,93525.0,0.010695]
[1767693476238,0.09429506,93533.0,93525.0,0.010695]
[1767693477243,0.09429506,93533.0,93522.0,0.010696]
[1767693477949,0.09429506,93533.0,93524.0,0.010696]
[1767693478247,0.09429506,93533.0,93520.0,0.08658046]
[1767693478639,0.09429506,93533.0,93524.0,0.010696]
[1767693478839,0.09429506,93533.0,93520.0,0.09888446]
[1767693479137,0.01249665,93537.0,93521.0,0.010696]
[1767693479448,0.09429506,93538.0,93527.0,0.010695]
[1767693479844,0.10679171,93538.0,93527.0,0.010695]
[1767693480049,0.10679171,93538.0,93520.0,0.09888446]
[1767693480752,0.10679171,93538.0,93526.0,0.010695]
[1767693480951,0.10679171,93538.0,93529.0,0.010695]
[1767693481143,0.10679171,93538.0,93527.0,0.010695]
[1767693481851,0.11748571,93538.0,93527.0,0.010695]
[1767693482551,0.01210262,93537.0,93527.0,0.010695]
[1767693482759,0.10958298,93537.0,93527.0,0.010695]
[1767693484558,0.10958298,93537.0,93524.0,0.010696]
[1767693484759,0.10958298,93537.0,93520.0,0.09888446]
[1767693485257,0.10958298,93537.0,93526.0,0.010695]
[1767693485856,0.10958298,93537.0,93520.0,0.09857946]
[1767693486163,0.10958298,93537.0,93520.0,0.09888446]
[1767693487064,0.10958298,93537.0,93527.0,0.010695]
[1767693487267,0.10958298,93537.0,93528.0,0.010695]
[1767693488056,0.10958298,93537.0,93520.0,0.09888446]
[1767693488057,0.10958298,93537.0,93526.0,0.010695]
[1767693488766,0.10958298,93537.0,93527.0,0.010695]
[1767693489264,0.09092,93539.0,93521.0,0.01212694]
[1767693489457,0.09748036,93542.0,93535.0,0.010694]
[1767693493268,0.09748036,93542.0,93536.0,0.010694]
[1767693493664,0.09748036,93542.0,93530.0,0.09057846]
[1767693494163,0.09748036,93542.0,93536.0,0.010694]
[1767693494469,0.09748036,93542.0,93530.0,0.09057846]
[1767693494470,0.09748036,93542.0,93537.0,0.010694]
[1767693494655,0.01210262,93547.0,93530.0,0.09057846]
[1767693494859,0.010693,93551.0,93539.0,0.010694]
[1767693495169,0.01210262,93551.0,93531.0,0.01212694]
[1767693495570,0.02279562,93549.0,93536.0,0.010694]
[1767693497168,0.01210262,93549.0,93530.0,0.09888446]
[1767693497372,0.010693,93547.0,93534.0,0.010694]
[1767693498068,0.02279662,93540.0,93526.0,0.010695]
[1767693498271,0.01210262,93537.0,93520.0,0.09888446]
[1767693498469,0.01210262,93533.0,93512.0,0.1081796]
[1767693498675,0.01210262,93532.0,93521.0,0.010696]
[1767693499170,0.09748036,93533.0,93521.0,0.010696]
[1767693499475,0.09748036,93533.0,93520.0,0.09888446]
[1767693499671,0.010694,93538.0,93520.0,0.09888446]
[1767693500662,0.010694,93538.0,93524.0,0.010696]
[1767693501271,0.010694,93538.0,93520.0,0.09658046]
[1767693501474,0.010694,93538.0,93520.0,0.09888446]
[1767693502174,0.010694,93538.0,93523.0,0.010696]
[1767693502771,0.10958298,93540.0,93523.0,0.010696]
[1767693502970,0.01210262,93539.0,93523.0,0.010696]
[1767693503165,0.010694,93536.0,93520.0,0.10958046]
[1767693503569,0.010694,93536.0,93523.0,0.010696]
[1767693505178,0.01210262,93538.0,93523.0,0.010696]
[1767693505371,0.01210262,93538.0,93520.0,0.09888446]
[1767693505680,0.010695,93530.0,93516.0,0.010697]
[1767693505878,0.010695,93530.0,93513.0,0.09092]
[1767693505879,0.010695,93530.0,93517.0,0.010696]
[1767693506080,0.010695,93532.0,93517.0,0.010696]
[1767693506276,0.010695,93532.0,93519.0,0.010696]
[1767693507481,0.02279662,93535.0,93521.0,0.010696]
[1767693507985,0.010695,93533.0,93521.0,0.010696]
[1767693508183,0.01210262,93535.0,93521.0,0.010696]
[1767693508480,0.01210262,93535.0,93513.0,0.1884026]
[1767693508481,0.010694,93536.0,93523.0,0.010696]
[1767693509075,0.010694,93536.0,93517.0,0.01212694]
[1767693509274,0.10958298,93538.0,93523.0,0.010696]
[1767693509983,0.010694,93537.0,93523.0,0.010696]
[1767693510776,0.01210262,93537.0,93520.0,0.09888446]
[1767693511086,0.010694,93536.0,93522.0,0.010696]
[1767693513889,0.010694,93536.0,93523.0,0.010696]
[1767693514383,0.010694,93536.0,93520.0,0.09888446]
[1767693514384,0.010694,93538.0,93521.0,0.01298721]
[1767693514589,0.010694,93536.0,93521.0,0.01298721]
[1767693514884,0.010694,93536.0,93524.0,0.010696]
[1767693515091,0.010694,93539.0,93524.0,0.010696]
[1767693515494,0.02368371,93537.0,93521.0,0.010696]
[1767693515792,0.02368371,93537.0,93523.0,0.010696]
[1767693516484,0.01298971,93537.0,93525.0,0.010696]
[1767693516684,0.09253,93539.0,93525.0,0.010696]
[1767693516884,0.09253,93539.0,93520.0,0.09888446]
[1767693517191,0.09253,93539.0,93525.0,0.010696]
[1767693518894,0.010694,93538.0,93525.0,0.010696]
[1767693519090,0.010695,93534.0,93520.0,0.010696]
[1767693519284,0.010695,93534.0,93520.0,0.10958046]
[1767693520293,0.01298971,93536.0,93522.0,0.010696]
[1767693520793,0.02368371,93536.0,93522.0,0.010696]
[1767693521785,0.010694,93536.0,93523.0,0.010696]
[1767693522190,0.010694,93538.0,93525.0,0.010696]
[1767693522695,0.010694,93536.0,93522.0,0.010696]
[1767693522894,0.010694,93536.0,93524.0,0.010696]
[1767693523592,0.01298971,93541.0,93524.0,0.010696]
[1767693523796,0.010694,93538.0,93524.0,0.010696]
[1767693524398,0.01298971,93541.0,93521.0,0.12339018]
[1767693524598,0.01298971,93541.0,93521.0,0.10939018]
[1767693524801,0.01298971,93541.0,93522.0,0.010696]
[1767693524990,0.010694,93537.0,93524.0,0.010696]
[1767693525499,0.010694,93539.0,93526.0,0.010695]
[1767693526789,0.01298971,93540.0,93526.0,0.010695]
[1767693528299,0.02368371,93540.0,93526.0,0.010695]
[1767693528895,0.010694,93538.0,93526.0,0.010695]
[1767693529396,0.010694,93536.0,93523.0,0.010696]
[1767693529595,0.010694,93539.0,93524.0,0.010696]
[1767693529899,0.010694,93535.0,93524.0,0.010696]
[1767693530095,0.010694,93537.0,93524.0,0.010696]
[1767693530697,0.01298971,93540.0,93521.0,0.09869418]
[1767693530698,0.010694,93538.0,93521.0,0.09869418]
[1767693531297,0.010694,93538.0,93526.0,0.010695]
[1767693532294,0.010694,93538.0,93521.0,0.08638918]
[1767693532599,0.01298971,93540.0,93527.0,0.010695]
[1767693532792,0.12256817,93540.0,93527.0,0.010695]
[1767693534106,0.010694,93536.0,93524.0,0.010696]
[1767693534396,0.01298971,93540.0,93524.0,0.010696]
[1767693534601,0.01298971,93540.0,93525.0,0.010695]
[1767693534602,0.010694,93538.0,93525.0,0.010695]
[1767693534996,0.010694,93538.0,93526.0,0.010695]
[1767693535291,0.02368371,93540.0,93526.0,0.010695]
[1767693537295,0.02368371,93540.0,93527.0,0.010695]
[1767693538701,0.02368371,93540.0,93521.0,0.08638918]
[1767693539502,0.02368371,93540.0,93529.0,0.010695]
[1767693539903,0.010694,93537.0,93521.0,0.06638918]
[1767693540102,0.010694,93537.0,93525.0,0.010695]
[1767693541800,0.01298971,93540.0,93525.0,0.010695]
[1767693541996,0.010695,93535.0,93523.0,0.010696]
[1767693542398,0.0232311,93538.0,93524.0,0.010696]
[1767693543807,0.0232311,93538.0,93525.0,0.010695]
[1767693544607,0.010694,93536.0,93523.0,0.010696]
[1767693544806,0.0232311,93538.0,93525.0,0.010696]
[1767693545009,0.0125371,93538.0,93519.0,0.01298721]
[1767693545506,0.09092,93542.0,93526.0,0.01308458]
[1767693545698,0.09092,93542.0,93525.0,0.09599976]
[1767693545899,0.09092,93542.0,93531.0,0.010695]
[1767693546105,0.1034571,93542.0,93531.0,0.010695]
[1767693546506,0.0125371,93541.0,93531.0,0.010695]
[1767693547809,0.0125371,93541.0,93523.0,0.00777958]
[1767693548207,0.0125371,93541.0,93531.0,0.010695]
[1767693548914,0.09092,93542.0,93533.0,0.010695]
[1767693549107,0.09092,93542.0,93535.0,0.010694]
[1767693549511,0.09092,93542.0,93530.0,0.010695]
[1767693550006,0.09092,93542.0,93532.0,0.010695]
[1767693550812,0.09092,93542.0,93534.0,0.010694]
[1767693551611,0.09092,93542.0,93531.0,0.010695]
[1767693553215,0.09092,93542.0,93528.0,0.010695]
[1767693553413,0.09092,93542.0,93525.0,0.10669476]
[1767693553612,0.010694,93540.0,93527.0,0.010695]
[1767693554112,0.09092,93542.0,93529.0,0.010695]
[1767693555504,0.09092,93542.0,93529.0,0.005695]
[1767693556007,0.09092,93542.0,93525.0,0.09599976]
[1767693556200,0.0232311,93536.0,93520.0,0.010696]
[1767693556400,0.0125371,93536.0,93518.0,0.09092]
[1767693556602,0.010695,93532.0,93519.0,0.010696]
[1767693557009,0.0232321,93534.0,93520.0,0.010696]
[1767693557318,0.0125371,93533.0,93520.0,0.010696]
[1767693557811,0.0232321,93533.0,93520.0,0.010696]
[1767693558208,0.0232331,93524.0,93511.0,0.010697]
[1767693558405,0.0125371,93523.0,93509.0,0.09305884]
[1767693558611,0.0125371,93523.0,93511.0,0.010697]
[1767693559505,0.010696,93522.0,93509.0,0.10375584]
[1767693559705,0.0125371,93523.0,93509.0,0.10375584]
[1767693559915,0.0125371,93523.0,93511.0,0.010697]
[1767693562114,0.09662095,93526.0,93513.0,0.010697]
[1767693562316,0.10915805,93526.0,93513.0,0.010697]
[1767693563213,0.10915805,93526.0,93509.0,0.09092]
[1767693563517,0.10915805,93526.0,93516.0,0.010697]
[1767693563817,0.0125371,93530.0,93516.0,0.010697]
[1767693565611,0.0125371,93530.0,93519.0,0.010696]
[1767693566115,0.0125371,93530.0,93516.0,0.010696]
[1767693566418,0.0125371,93530.0,93518.0,0.010696]